[Event "3rd VIZAG GM-Open 2022"]
[Site "Visakapatnam"]
[Date "2022.06.15"]
[Round "8.1"]
[White "Gusain, Himal"]
[Black "Audi Ameya"]
[Result "1/2-1/2"]
[ECO "C48"]
[WhiteElo "2396"]
[BlackElo "2389"]
[Annotator "TA"]
[PlyCount "69"]
[EventDate "2022.06.13"]
[EventType "swiss"]
[EventCountry "IND"]
[SourceTitle "playchess.com"]
[Source "ChessBase"]
[SourceQuality "1"]
[TimeControl "5400+30"]

{[%evp 9,69,17,10,0,104,106,92,98,109,94,75,43,30,41,39,46,68,68,71,42,54,39,62,16,10,8,14,23,46,0,0,0,0,-2,-6,-18,-16,-16,-13,-14,-12,-10,-4,-10,-10,-18,0,-7,0,-4,0,-4,-6,-8,-9,-10,0,-25,0,-11,0,-16]} 1. e4 {[%emt 0:08:19]} e5 {[%emt 0:00:16]} 2. Nf3 {[%emt 0:00:05]} Nc6 {[%emt 0:00:02]} 3. Nc3 {[%emt 0:00:07]} Nf6 {[%emt 0:00:26]} 4. Bb5 {[%emt 0:00:06]} Nd4 {[%emt 0:02:02]} 5. Bc4 {[%emt 0:00:13]} Nxf3+ {[%emt 0:21:00]} 6. gxf3 {[%emt 0:13:00] C48: Four Knights: 4 Bb5, replies other than 4...Bb4.} g6 {[%emt 0:17:05]} (6... Bc5 $11 {keeps the balance.}) 7. d4 $16 {[%emt 0:01:38]} exd4 {[%emt 0:01:05]} 8. Qxd4 {[%emt 0:00:10] [#] Threatens to win with Bg5. White is better.} Bg7 {[%emt 0:01:43] [#]} 9. Qe5+ $146 {[%emt 0:11:26]} (9. Bg5 {is more complex.} h6 10. Bh4 g5 11. Bg3) ({Predecessor:} 9. Bg5 h6 10. Be3 d6 11. O-O-O Nh5 12. Qd2 Qf6 13. Bb5+ Kf8 14. h4 a6 15. Be2 {1-0 (58) Rambaldi,F (2568)-Srebrnic,A (2199) Bergamo 2017}) 9... Kf8 {[%emt 0:00:20]} 10. Qf4 {[%emt 0:07:01] 0x0.001762ddbe32dp-1022s more active pieces. The black rooks are badly placed.} d6 {[%emt 0:04:14]} 11. Bd2 {[%emt 0:00:17]} Qe7 {[%emt 0:10:32]} 12. O-O-O {[%emt 0:01:52]} Be6 {[%emt 0:02:41]} 13. Bxe6 {[%emt 0:01:58]} fxe6 {[%emt 0:04:40]} 14. e5 {[%emt 0:11:20]} (14. Rhe1 $5 {[%cal Re4e5]}) 14... dxe5 {[%emt 0:00:08]} 15. Qxe5 {[%emt 0:00:15]} Nd5 {[%emt 0:02:20]} 16. Nxd5 {[%emt 0:01:19]} Bxe5 $11 {[%emt 0:00:39]} 17. Nxe7 {[%emt 0:00:06]} Kxe7 {[%emt 0:00:04][%cal Bf8e7,Be7e8,Be8d7][%mdl 32]} 18. Bg5+ {[%emt 0:00:10]} Ke8 {[%emt 0:12:35]} 19. Rde1 {[%emt 0:00:42]} (19. Rhe1 $14 {deserves consideration.} Bd6 20. Rxe6+ Kd7 21. Re4) 19... Bd6 $1 {[%emt 0:00:19]} 20. Rxe6+ {[%emt 0:00:14]} Kd7 {[%emt 0:00:05]} 21. Re4 {[%emt 0:04:16]} Raf8 {[%emt 0:00:40]} 22. Bh4 {[%emt 0:09:40]} Rxf3 {[%emt 0:00:05]} 23. Bg3 {[%emt 0:00:03]} Re8 {[%emt 0:02:49]} 24. Rxe8 {[%emt 0:03:40]} Kxe8 {[%emt 0:00:02][%mdl 4096] Endgame KRB-KRB} 25. Kd1 {[%emt 0:00:05]} h5 {[%emt 0:05:24]} 26. Bxd6 {[%emt 0:01:38]} cxd6 {[%emt 0:00:02] KR-KR} 27. Ke2 {[%emt 0:00:10]} Rf5 {[%emt 0:02:18]} 28. Rd1 {[%emt 0:01:11]} Ke7 {[%emt 0:00:29]} 29. Rd4 {[%emt 0:00:33]} g5 {[%emt 0:00:33]} 30. h3 {[%emt 0:01:39]} Ke6 {[%emt 0:00:43]} 31. Ke3 {[%emt 0:02:06]} Re5+ {[%emt 0:00:25]} 32. Kf3 {[%emt 0:00:21]} Rf5+ {[%emt 0:00:17]} 33. Ke3 {[%emt 0:00:08]} Re5+ {[%emt 0:00:04]} 34. Kf3 {[%emt 0:00:15]} Rf5+ {[%emt 0:00:04]} 35. Ke3 {[%emt 0:21:57] Weighted Error Value: White=0.08 (flawless) /Black=0.11 (very precise)} 1/2-1/2

[Event "3rd VIZAG GM-Open 2022"]
[Site "Visakapatnam"]
[Date "2022.06.15"]
[Round "8.2"]
[White "Amonatov, Farrukh"]
[Black "Paichadze, Luka"]
[Result "0-1"]
[ECO "B12"]
[WhiteElo "2622"]
[BlackElo "2567"]
[Annotator "TA"]
[PlyCount "114"]
[EventDate "2022.06.13"]
[EventType "swiss"]
[EventCountry "IND"]
[SourceTitle "playchess.com"]
[Source "ChessBase"]
[SourceQuality "1"]
[TimeControl "5400+30"]

{[%evp 9,114,7,18,0,7,2,7,0,27,21,45,45,45,17,75,66,64,50,60,60,94,96,121,0,22,-120,-106,-103,0,-199,-154,-156,-159,-154,-137,-172,151,126,131,145,147,150,117,-51,-55,-133,-134,-193,-191,-189,-183,-176,-182,-175,-163,-176,-165,-167,-168,-164,-162,-160,-164,-164,-164,-266,-258,-264,-264,-266,-266,-256,-256,-256,-243,-256,-256,-258,-257,-487,-487,-487,-487,-536,-536,-536,-536,-535,-535,-6187,-6087,-5514,-5502,-29958,-29959,-29961,-29961,-29961,-29956,-29975,-29976,-29978,-29979,-29982,-29983,-29982,-29982]} 1. e4 {[%emt 0:00:04]} c6 {[%emt 0:00:08]} 2. d4 {[%emt 0:00:04]} d5 {[%emt 0:00:04]} 3. e5 {[%emt 0:00:03]} c5 {[%emt 0:00:05]} 4. dxc5 {[%emt 0:00:05]} e6 {[%emt 0:00:04]} 5. a3 {[%emt 0:00:58]} Bxc5 {[%emt 0:00:15]} 6. Qg4 {[%emt 0:00:58] B12: Caro-Kann: Advance Variation.} Ne7 {[%emt 0:00:05]} 7. Bd3 {[%emt 0:01:15]} O-O $5 {[%emt 0:01:12][%mdl 4] A promising side line.} 8. Nf3 {[%emt 0:00:15][%cal Od3h7] Strongly threatening Bxh7+! The position is equal.} Ng6 {[%emt 0:03:34]} 9. O-O {[%emt 0:07:28]} Nc6 {[%emt 0:08:24]} 10. Qh5 {[%emt 0:08:45]} Qe8 {[%emt 0:14:00]} 11. Nc3 {[%emt 0:04:02]} (11. Ng5 h6 12. Nf3 (12. Nxf7 $2 Ngxe5 13. Nxh6+ gxh6 $19) 12... Nd4 $11) 11... a6 {[%emt 0:04:25]} (11... Bd7 $1 $11) 12. Bd2 $16 {[%emt 0:02:57]} (12. Ng5 h6 13. Nf3 (13. Nxf7 $2 Ngxe5 14. Nxh6+ gxh6 $19) 13... Be7 $11) 12... Bd7 {[%emt 0:07:26]} 13. Rae1 {[%emt 0:02:11]} (13. Ng5 h6 14. Nf3 f5 $11) 13... Nce7 {[%emt 0:04:27]} 14. h4 {[%emt 0:03:59]} (14. Ng5 h6 $11) 14... f5 {[%emt 0:05:58][%cal Og6e5] Inhibits Qg4. aiming for ...Nxe5!} 15. exf6 {[%emt 0:08:09]} (15. Ng5 h6 16. Nh3 Qb8 $17) (15. b4 Bb6 $11) 15... gxf6 {[%emt 0:00:04] [#]} 16. b4 $146 {[%emt 0:30:56]} (16. Qg4 $1 $16) ({Predecessor:} 16. Qh6 Qf7 17. h5 Nh8 18. Be3 Bd6 19. Bf4 Bxf4 20. Qxf4 e5 21. Qh4 Qg7 22. Re3 {1-0 (46) Al Modiahki,M (2499)-Omolo,K (2053) Istanbul 2000}) 16... Ba7 {[%emt 0:08:39]} 17. Nh2 {[%emt 0:03:17]} (17. Qh6 $11 Rf7 18. h5) 17... e5 $17 {[%emt 0:04:14]} 18. Ng4 {[%emt 0:01:40]} Kh8 {[%emt 0:10:57]} (18... Rc8 $1 $17 19. b5 axb5) 19. Bh6 $2 {[%emt 0:09:32]} (19. Nxe5 $1 $11 fxe5 20. Rxe5) 19... Rf7 {[%emt 0:03:52]} 20. Bd2 {[%emt 0:00:07]} Qc8 {[%emt 0:04:09]} 21. Nxf6 {[%emt 0:01:12]} Rxf6 {[%emt 0:00:08] The board is on fire.} 22. Rxe5 {[%emt 0:00:03]} Qg8 $2 {[%emt 0:04:57]} (22... Bg4 $1 $19 {[%cal Rg4h5]} 23. Qg5 Qf8 $1) 23. Nxd5 $16 {[%emt 0:02:34]} Nxd5 {[%emt 0:01:36]} 24. Rxd5 {[%emt 0:02:06]} Bc6 {[%emt 0:01:38]} 25. Rg5 {[%emt 0:01:06]} ({But not} 25. Bc3 $6 Qxd5 26. Bxf6+ Kg8 $11) 25... Rd8 {[%emt 0:03:58]} 26. Qg4 $2 {[%emt 0:01:47]} ({White must play} 26. Rg4 $1 $16 {Bc3 is the strong threat.} Rd5 27. Bc3 $1 Rxh5 28. Bxf6+ Qg7 29. Bxg7+ Kxg7 30. Be4) 26... Bd4 $15 {[%emt 0:06:28] Against Bc3. White must now prevent ...Qf7.} 27. Qg3 {[%emt 0:04:55] [#] Black continues to play with concentration.} (27. h5 $2 Ne5 $1 28. Rxg8+ Rxg8 29. Qxg8+ Kxg8 $19) (27. Be3 $15 Bb2 28. Bb6) 27... Qf7 $1 $17 {[%emt 0:00:44] Black is more active.} 28. Bxg6 {[%emt 0:01:46]} (28. Rg4 $17 Be5 29. f4) 28... Rxg6 $19 {[%emt 0:01:00]} ({Inferior is} 28... hxg6 29. Bc3 $17) 29. Bc3 {[%emt 0:00:25] [#]} Bxc3 $1 {[%emt 0:00:45]} 30. Qxc3+ {[%emt 0:00:02]} Qg7 {[%emt 0:00:14]} 31. Qe3 {[%emt 0:01:27]} Re8 {[%emt 0:00:31]} 32. Qd2 {[%emt 0:00:52]} h6 {[%emt 0:00:28]} 33. Rxg6 {[%emt 0:00:09]} Qxg6 {[%emt 0:00:01][%csl Gc6][%cal Rg6g2]} 34. f3 {[%emt 0:00:06]} Qf6 $40 {[%emt 0:00:14][%mdl 128] White is in trouble.} 35. Qf2 {[%emt 0:01:58]} Rd8 {[%emt 0:00:56]} 36. Re1 {[%emt 0:00:36]} Qf4 {[%emt 0:01:03]} 37. Qe2 {[%emt 0:00:39]} (37. Re2 {was necessary.}) 37... Rd2 {[%emt 0:01:13]} ({Stronger than} 37... Qxh4 38. c4 $17) 38. Qe3 {[%emt 0:00:18]} Qxe3+ {[%emt 0:00:07]} 39. Rxe3 {[%emt 0:00:01]} Rxc2 {[%emt 0:00:06][%mdl 4096] Endgame KRB-KR} 40. Kh2 {[%emt 0:00:09]} Kg7 {[%emt 0:00:09]} 41. Kh3 {[%emt 0:00:01]} Rf2 {[%emt 0:00:45]} 42. Kg3 {[%emt 0:00:05]} Rd2 {[%emt 0:00:05]} 43. Kh3 {[%emt 0:00:04]} Kf6 {[%emt 0:00:18]} 44. g4 $2 {[%emt 0:00:06]} (44. Kg3) 44... Bb5 {[%emt 0:00:09]} 45. Kg3 {[%emt 0:00:08]} Rd3 {[%emt 0:00:06]} 46. Rxd3 {[%emt 0:02:03]} Bxd3 {[%emt 0:00:02] KB-KP} 47. Kf4 {[%emt 0:00:06]} Bc2 {[%emt 0:00:06]} 48. Ke3 {[%emt 0:00:29]} Ke5 {[%emt 0:00:18] And now ...Bd1 would win.} 49. Kd2 {[%emt 0:00:57] Inhibits Bd1.} Ba4 {[%emt 0:00:40] ( -> ...Kf4)} 50. Ke3 {[%emt 0:00:07]} Bd1 {[%emt 0:01:28]} 51. f4+ {[%emt 0:02:18]} Ke6 {[%emt 0:00:09] Black mates.} 52. g5 {[%emt 0:00:06]} h5 {[%emt 0:00:41]} 53. Kd4 {[%emt 0:00:11]} Kf5 {[%emt 0:00:17]} 54. b5 {[%emt 0:01:13]} axb5 {[%emt 0:00:13]} 55. Kc5 {[%emt 0:00:04]} Bc2 {[%emt 0:00:15]} 56. Kxb5 {[%emt 0:00:12]} Kxf4 {[%emt 0:00:14]} 57. Kb6 {[%emt 0:00:04]} Kg4 {[%emt 0:00:40] Weighted Error Value: White=0.50/Black=0.21 (precise)} 0-1

[Event "3rd VIZAG GM-Open 2022"]
[Site "Visakapatnam"]
[Date "2022.06.15"]
[Round "8.3"]
[White "Harsha Bharathakoti"]
[Black "Mirzoev, Azer"]
[Result "1/2-1/2"]
[ECO "C43"]
[WhiteElo "2547"]
[BlackElo "2476"]
[Annotator "TA"]
[PlyCount "111"]
[EventDate "2022.06.13"]
[EventType "swiss"]
[EventCountry "IND"]
[SourceTitle "playchess.com"]
[Source "ChessBase"]
[SourceQuality "1"]
[TimeControl "5400+30"]

{[%evp 16,111,18,17,27,0,11,8,8,11,27,22,26,0,23,14,8,12,28,21,43,19,31,27,27,7,0,0,62,62,62,58,79,62,62,62,79,62,79,62,83,62,81,0,83,73,73,65,68,65,66,54,70,47,72,40,47,40,47,47,47,47,64,47,82,40,84,40,40,40,40,40,40,0,40,40,40,30,40,6,26,6,40,6,40,6,40,6,40,40,40,0,40,0,40,0,40,0]} 1. e4 {[%emt 0:00:06]} e5 {[%emt 0:00:08]} 2. Nf3 {[%emt 0:00:21]} Nf6 {[%emt 0:00:13]} 3. d4 {[%emt 0:04:25]} Nxe4 {[%emt 0:00:41]} 4. Bd3 {[%emt 0:00:10]} d5 {[%emt 0:00:46]} 5. Nxe5 {[%emt 0:00:20]} Nd7 {[%emt 0:01:15]} 6. Nc3 {[%emt 0:01:38]} Nxc3 {[%emt 0:07:00]} 7. bxc3 {[%emt 0:00:10]} Nxe5 {[%emt 0:00:56] 7...Bd6 might become the main line.} 8. dxe5 {[%emt 0:00:04]} Be7 {[%emt 0:00:44]} 9. O-O {[%emt 0:12:51][%cal Bh1f1,Bf1f2,Bf2d2][%mdl 32] 9.Qh5 is vanishing.} O-O {[%emt 0:01:57] C43: Petroff Defence: 3 d4.} 10. Rb1 {[%emt 0:05:31]} b6 {[%emt 0:01:57]} 11. f4 {[%emt 0:06:44]} f5 {[%emt 0:01:27] The position is equal.} 12. Be3 {[%emt 0:03:24]} Be6 {[%emt 0:02:03] [#]} 13. Bb5 $146 {[%emt 0:17:10]} ({Predecessor:} 13. Be2 c6 14. Bf3 b5 15. Qd3 a5 16. Qd2 Qd7 17. Ra1 Ba3 18. Rfb1 Qe7 19. Qf2 {0-1 (52) Yip,C (2412)-Kosteniuk,A (2504) Saint Louis 2020}) 13... c5 {[%emt 0:02:04]} 14. Rf2 {[%emt 0:00:44]} Qc7 {[%emt 0:03:26]} 15. Rd2 {[%emt 0:03:36]} Rad8 {[%emt 0:01:43]} 16. Be2 {[%emt 0:04:06]} Rd7 {[%emt 0:00:18]} 17. Qf1 {[%emt 0:02:05]} g6 {[%emt 0:13:53]} 18. Rbd1 {[%emt 0:01:25]} h6 {[%emt 0:14:25]} 19. a4 {[%emt 0:12:26]} Kh7 {[%emt 0:01:56]} 20. Bf3 {[%emt 0:02:03][%cal Rf3d5]} Rfd8 $1 {[%emt 0:00:21]} 21. Kh1 {[%emt 0:00:04]} h5 {[%emt 0:06:56]} (21... g5 $11) 22. Qb5 $14 {[%emt 0:04:23]} Kg7 {[%emt 0:06:54]} 23. g3 {[%emt 0:03:09]} Kf7 {[%emt 0:02:06]} 24. Qe2 {[%emt 0:07:05] White is more active.} Kg7 {[%emt 0:00:10]} 25. Bf2 {[%emt 0:03:21]} Bf8 {[%emt 0:04:58]} 26. Kg2 {[%emt 0:00:09]} Kg8 {[%emt 0:00:59]} 27. h3 {[%emt 0:00:18]} Qc8 {[%emt 0:00:59]} 28. Kh2 {[%emt 0:00:31]} Qc7 {[%emt 0:01:36]} 29. Kg2 {[%emt 0:00:35]} Qc8 $1 {[%emt 0:00:08]} 30. Qb5 {[%emt 0:04:20]} Qc7 {[%emt 0:00:31]} 31. Qb3 {[%emt 0:01:03]} Qb7 {[%emt 0:02:23]} 32. Qa2 {[%emt 0:00:59] [#] aiming for c4.} c4 {[%emt 0:05:29]} 33. Rb1 {[%emt 0:00:21]} Qc6 {[%emt 0:01:00]} 34. Bd4 {[%emt 0:00:51]} Rb7 {[%emt 0:00:52]} 35. Kh2 {[%emt 0:00:27]} (35. a5 $5 {[%cal Ra5b6]}) 35... Rdd7 {[%emt 0:01:34]} 36. h4 {[%emt 0:01:00]} Kf7 {[%emt 0:00:31]} 37. Rdd1 {[%emt 0:00:29]} Be7 {[%emt 0:00:50]} 38. Rb2 {[%emt 0:00:20]} Rb8 {[%emt 0:02:50]} 39. Kg2 {[%emt 0:00:24]} Rdb7 {[%emt 0:00:28]} 40. Rdb1 {[%emt 0:00:46]} Ke8 {[%emt 0:00:59]} 41. Kf2 {[%emt 0:00:34]} a6 {[%emt 0:00:52]} 42. Ra1 {[%emt 0:00:26]} Kf7 {[%emt 0:00:24]} 43. Kg2 {[%emt 0:00:34]} Ke8 {[%emt 0:00:04]} 44. Kf2 {[%emt 0:00:28]} Kf7 {[%emt 0:00:04]} 45. Ke2 {[%emt 0:00:07]} Ke8 {[%emt 0:00:14]} 46. Ke3 {[%emt 0:00:52][%cal Be2e3,Be3f2,Bf2g2][%mdl 32]} Kf7 {[%emt 0:00:08]} 47. Rab1 {[%emt 0:00:32]} Ke8 {[%emt 0:00:12]} 48. Kf2 {[%emt 0:00:31]} Kf7 {[%emt 0:00:09]} 49. Kg2 {[%emt 0:00:29]} Ke8 {[%emt 0:00:06]} 50. Be3 {[%emt 0:00:09]} Kf7 {[%emt 0:00:28]} 51. Bf2 {[%emt 0:00:07]} Ke8 {[%emt 0:00:11]} 52. Ra1 {[%emt 0:00:50]} Kf7 {[%emt 0:00:06]} 53. Bd4 {[%emt 0:00:50]} Ke8 {[%emt 0:00:07]} 54. Bf2 {[%emt 0:00:34]} Kf7 {[%emt 0:00:04]} 55. Bd4 {[%emt 0:00:18]} Ke8 {[%emt 0:00:05]} 56. Bf2 {[%emt 0:00:02] Weighted Error Value: White=0.16 (very precise) /Black=0.11 (very precise)} 1/2-1/2

[Event "3rd VIZAG GM-Open 2022"]
[Site "Visakapatnam"]
[Date "2022.06.15"]
[Round "8.4"]
[White "Neelotpal, Das"]
[Black "Savchenko, Boris"]
[Result "0-1"]
[ECO "C13"]
[WhiteElo "2431"]
[BlackElo "2524"]
[Annotator "RC"]
[PlyCount "88"]
[EventDate "2022.06.13"]
[EventType "swiss"]
[EventCountry "IND"]
[SourceTitle "playchess.com"]
[Source "ChessBase"]
[SourceQuality "1"]
[TimeControl "5400+30"]

1. e4 {[%emt 0:00:06]} e6 {[%emt 0:07:58]} 2. d4 {[%emt 0:00:19]} d5 {[%emt 0:00:34]} 3. Nc3 {[%emt 0:04:01]} Nf6 {[%emt 0:00:10]} 4. Bg5 {[%emt 0:00:26]} dxe4 {[%emt 0:00:08]} 5. Nxe4 {[%emt 0:00:16]} Be7 {[%emt 0:00:06]} 6. Bxf6 {[%emt 0:01:02]} gxf6 {[%emt 0:00:06]} 7. Nf3 {[%emt 0:05:13]} f5 {[%emt 0:00:09]} 8. Nc3 {[%emt 0:03:14]} a6 {[%emt 0:00:09]} 9. Qe2 {[%emt 0:10:24]} b5 {[%emt 0:07:59]} 10. O-O-O {[%emt 0:00:50]} b4 {[%emt 0:10:00]} 11. Na4 {[%emt 0:01:29]} Qd5 {[%emt 0:12:09]} 12. Kb1 {[%emt 0:03:35]} Nd7 {[%emt 0:03:18]} 13. Ne5 {[%emt 0:26:03]} Nxe5 {[%emt 0:14:53]} 14. dxe5 {[%emt 0:00:07]} Qb7 {[%emt 0:06:25]} 15. Qd2 {[%emt 0:12:03]} h5 {[%emt 0:07:49]} 16. h4 {[%emt 0:07:10]} Qe4 {[%emt 0:01:36]} 17. Be2 {[%emt 0:07:31]} Qxg2 {[%emt 0:00:34]} 18. f3 {[%emt 0:01:54]} Kf8 {[%emt 0:01:40]} 19. Qe3 {[%emt 0:01:32]} Bb7 {[%emt 0:03:09]} 20. Nc5 {[%emt 0:05:38]} f4 {[%emt 0:00:14]} 21. Nd7+ {[%emt 0:00:47]} Ke8 {[%emt 0:01:55]} 22. Nf6+ {[%emt 0:01:11]} Bxf6 {[%emt 0:01:05]} 23. Qd2 {[%emt 0:00:27]} Qg6 {[%emt 0:07:37]} 24. exf6 {[%emt 0:01:25]} Qxf6 {[%emt 0:00:12]} 25. Qxb4 {[%emt 0:00:29]} Bd5 {[%emt 0:00:50]} 26. Qc5 {[%emt 0:02:49]} Qe5 {[%emt 0:02:41]} 27. Bc4 {[%emt 0:00:34]} Rb8 {[%emt 0:04:38]} 28. b3 {[%emt 0:00:07]} c6 {[%emt 0:00:11]} 29. Bxd5 {[%emt 0:01:44]} cxd5 {[%emt 0:00:06]} 30. Rhe1 {[%emt 0:00:07]} Qf6 {[%emt 0:00:09]} 31. Rxd5 {[%emt 0:01:17]} Qxh4 {[%emt 0:00:53]} 32. Qc6+ {[%emt 0:01:25]} Kf8 {[%emt 0:00:04]} 33. Qd6+ {[%emt 0:00:33]} Kg7 {[%emt 0:00:06]} 34. Rg1+ {[%emt 0:00:53]} Kh6 {[%emt 0:00:18]} 35. Rd4 {[%emt 0:00:45]} Qh2 {[%emt 0:02:55]} 36. Rgd1 {[%emt 0:00:23]} Rbc8 {[%emt 0:00:42]} 37. R4d2 {[%emt 0:00:33]} Qg3 {[%emt 0:00:14]} 38. Qe5 {[%emt 0:00:36]} Qg5 {[%emt 0:00:19]} 39. Qe4 {[%emt 0:00:22]} Qf5 {[%emt 0:01:30]} 40. Qe1 {[%emt 0:00:28]} Rc3 {[%emt 0:00:55]} 41. Rd3 {[%emt 0:00:39]} Rxd3 {[%emt 0:00:16]} 42. Rxd3 {[%emt 0:00:01]} Rg8 {[%emt 0:00:16]} 43. Rd7 {[%emt 0:00:30]} Qf6 {[%emt 0:00:35]} 44. Ra7 {[%emt 0:00:27]} Qd4 {[%emt 0:00:33]} 0-1